fUST/lending_fUST_20250123
["ID","MTS","AMOUNT","RATE_DAILY","PERIOD"]
[350126825,1737645040439,-933.44,0.00019726,3]
[350126828,1737645040449,-392.37917441,0.00019726,3]
[350126831,1737645040459,-423.08,0.00019726,3]
[350126834,1737645040469,-500.0,0.00019726,3]
[350126837,1737645040478,-500.0,0.00019726,3]
[350126840,1737645040489,-500.0,0.00019726,3]
[350126843,1737645040499,-500.0,0.00019726,3]
[350126846,1737645040509,-291.58,0.00019726,3]
[350126849,1737645040519,-917.49,0.00019726,3]
[350126852,1737645040529,-500.0,0.00019726,3]
[350126855,1737645040539,-500.0,0.00019726,3]
[350126858,1737645040552,-500.0,0.00019726,3]
[350126861,1737645040562,-5760.95,0.00019726,3]
[350126884,1737645040684,-500.0,0.00019726,3]
[350126886,1737645040696,-500.0,0.00019726,3]
[350126888,1737645040707,-500.0,0.00019726,3]
[350126891,1737645040717,-500.0,0.00019726,3]
[350126893,1737645040727,-500.0,0.00019726,3]
[350126895,1737645040736,-2591.49,0.00019726,3]
[350126897,1737645040746,-500.0,0.00019726,3]
[350126899,1737645040756,-238.49,0.00019726,3]
[350126901,1737645040765,-500.0,0.00019726,3]
[350126903,1737645040775,-500.0,0.00019726,3]
[350126905,1737645040785,-500.0,0.00019726,3]
[350126907,1737645040795,-500.0,0.00019726,3]
[350126910,1737645040809,-500.0,0.00019726,3]
[350126912,1737645040820,-1114.57,0.00019726,3]
[350126914,1737645040830,-7204.17314464,0.0001974,2]
[350126916,1737645040840,-303.03939421,0.0001976,2]
[350126917,1737645040849,-303.03636376,0.0001976,2]
[350126920,1737645040859,-391.4251458,0.00019799,2]
[350126921,1737645040869,-502.88756924,0.00019856,2]
[350126924,1737645040878,-500.0,0.00019863,3]
[350126926,1737645040887,-425.17297494,0.00019863,3]
[350126928,1737645040897,-500.0,0.00019863,3]
[350126929,1737645040906,-500.0,0.00019863,3]
[350126931,1737645040915,-500.0,0.00019863,3]
[350126933,1737645040925,-500.0,0.00019863,3]
[350126935,1737645040934,-500.0,0.00019863,3]
[350126938,1737645040944,-500.0,0.00019863,3]
[350126940,1737645040953,-627.31,0.00019863,3]
[350126942,1737645040963,-500.0,0.00019863,3]
[350126944,1737645040972,-500.0,0.00019863,3]
[350126946,1737645040981,-500.0,0.00019863,3]
[350126948,1737645040991,-500.0,0.00019863,3]
[350126950,1737645041000,-500.0,0.00019863,3]
[350126952,1737645041010,-311.72,0.00019863,3]
[350126954,1737645041019,-500.0,0.00019863,3]
[350126956,1737645041029,-284.40452603,0.00019863,3]
[350126958,1737645041038,-500.0,0.00019863,3]
[350126960,1737645041048,-500.0,0.00019863,3]
[350126961,1737645041061,-500.0,0.00019863,3]
[350126963,1737645041070,-489.63723213,0.00019863,3]
[350126965,1737645041083,-500.0,0.00019863,2]
[350126967,1737645041092,-500.0,0.00019863,3]
[350126969,1737645041102,-500.0,0.00019863,3]
[350126971,1737645041111,-634.28,0.00019863,3]
[350126973,1737645041122,-500.0,0.00019863,3]
[350126975,1737645041132,-1176.6,0.00019863,3]
[350126977,1737645041141,-357.47752561,0.00019863,3]
[350126979,1737645041151,-2081.0,0.00019863,3]
[350126982,1737645041161,-500.0,0.00019863,3]
[350126984,1737645041171,-349.45969361,0.00019863,3]
[350126986,1737645041181,-500.0,0.00019863,3]
[350126988,1737645041190,-818.19,0.00019863,3]
[350126990,1737645041199,-933.44,0.00019863,3]
[350126992,1737645041209,-500.0,0.00019863,3]
[350126994,1737645041218,-500.0,0.00019863,3]
[350126996,1737645041228,-500.0,0.00019863,3]
[350126998,1737645041237,-917.49,0.00019863,3]
[350127000,1737645041246,-500.0,0.00019863,3]
[350127002,1737645041255,-500.0,0.00019863,3]
[350127004,1737645041264,-500.0,0.00019863,3]
[350127005,1737645041274,-5760.95,0.00019863,3]
[350127007,1737645041283,-500.0,0.00019863,3]
[350127010,1737645041293,-500.0,0.00019863,3]
[350127012,1737645041306,-2591.49,0.00019863,3]
[350127014,1737645041315,-500.0,0.00019863,3]
[350127016,1737645041324,-1114.57,0.00019863,3]
[350127018,1737645041334,-290.1327736,0.000199,2]
[350127020,1737645041343,-1200.0,0.00019919,2]
[350127022,1737645041352,-22575.37808345,0.00019934,2]
[350127024,1737645041361,-454.55909132,0.0001995,4]
[350127026,1737645041371,-292.5650204,0.0001995,4]
[350127028,1737645041379,-251.0,0.0001997,2]
[350127030,1737645041388,-500.0,0.00019973,2]
[350127032,1737645041397,-603.96239413,0.00019973,2]
[350127034,1737645041407,-151.0,0.00019999,2]
[350127036,1737645041416,-222404.11022027,0.0002,2]
[350127037,1737645041425,-16266.28,0.0002,2]
[350127040,1737645041434,-160.0,0.0002,2]
[350127042,1737645041444,-2000.0,0.0002,2]
[350127044,1737645041453,-2000.0,0.0002,2]
[350127045,1737645041462,-1510.68950647,0.0002,2]
[350127047,1737645041471,-1010.68950664,0.0002,2]
[350127049,1737645041480,-1226.3545933,0.0002,2]
[350127051,1737645041491,-600.0,0.0002,2]
[350127053,1737645041500,-1073.31474509,0.0002,2]
[350127055,1737645041509,-8006.88,0.0002,3]
[350127058,1737645041519,-16146.54974506,0.0002,17]
[350127060,1737645041528,-32706.0,0.0002,7]
[350127061,1737645041537,-67340.0,0.0002,2]
[350127064,1737645041546,-1309.0,0.0002,2]
[350127066,1737645041559,-11706.0,0.0002,2]
[350127068,1737645041569,-500.0,0.0002,3]
[350127070,1737645041578,-500.0,0.0002,3]
[350127071,1737645041587,-500.0,0.0002,3]
[350127074,1737645041596,-500.0,0.0002,3]
[350127076,1737645041606,-500.0,0.0002,3]
[350127077,1737645041615,-1000.0,0.0002,5]
[350127079,1737645041624,-500.0,0.0002,3]
[350127081,1737645041633,-151.0,0.0002,2]
[350127084,1737645041643,-2000.0,0.0002,2]
[350127086,1737645041652,-604.67848127,0.0002,3]
[350127087,1737645041662,-569.35227322,0.0002,3]
[350127089,1737645041672,-159.4,0.0002,3]
[350127091,1737645041682,-500.0,0.0002,3]
[350127093,1737645041691,-500.0,0.0002,3]
[350127095,1737645041700,-184.30735982,0.0002,2]
[350127097,1737645041710,-151.0,0.0002,2]
[350127100,1737645041720,-151.0,0.0002,2]
[350127102,1737645041729,-500.0,0.0002,2]
[350127103,1737645041739,-500.0,0.0002,3]
[350127106,1737645041748,-500.0,0.0002,3]
[350127108,1737645041758,-634.28,0.0002,3]
[350127110,1737645041767,-500.0,0.0002,3]
[350127112,1737645041777,-1176.6,0.0002,3]
[350127114,1737645041789,-201.720458,0.0002,2]
[350127116,1737645041803,-2081.0,0.0002,3]
[350127118,1737645041814,-201.98,0.0002,3]
[350127120,1737645041823,-151.0,0.0002,2]
[350127122,1737645041833,-151.0,0.0002,2]
[350127124,1737645041843,-500.0,0.0002,3]
[350127126,1737645041853,-818.19,0.0002,3]
[350127128,1737645041862,-933.44,0.0002,3]
[350127130,1737645041871,-500.0,0.0002,3]
[350127132,1737645041880,-500.0,0.0002,3]
[350127134,1737645041890,-160.0,0.0002,3]
[350127136,1737645041900,-160.0,0.0002,7]
[350127138,1737645041910,-917.49,0.0002,3]
[350127140,1737645041919,-500.0,0.0002,3]
[350127142,1737645041929,-500.0,0.0002,3]
[350127144,1737645041938,-500.0,0.0002,3]
[350127146,1737645041948,-5760.95,0.0002,3]
[350127148,1737645041957,-500.0,0.0002,3]
[350127150,1737645041967,-500.0,0.0002,3]
[350127152,1737645041976,-2591.49,0.0002,3]
[350127154,1737645041986,-500.0,0.0002,3]
[350127156,1737645041996,-1114.57,0.0002,3]
[350127158,1737645042006,-150.21,0.00020012,2]
[350127160,1737645042016,-151.32811967,0.00020012,2]
[350127162,1737645042026,-150.1,0.00020012,2]
[350127164,1737645042035,-150.53607368,0.00020012,2]
[350127166,1737645042045,-150.06494498,0.00020012,2]
[350127168,1737645042060,-500.0,0.00020012,2]
[350127170,1737645042070,-500.0,0.00020012,2]
[350127172,1737645042080,-150.21,0.00020012,2]
[350127174,1737645042090,-1000.0,0.0002002,2]
[350127176,1737645042100,-168.964713,0.0002002,15]
[350127177,1737645042111,-290.13277343,0.00020072,2]
[350127179,1737645042120,-1510.68950647,0.000201,2]
[350127182,1737645042130,-257.43210451,0.00020136,3]
[350127183,1737645042140,-407.65145568,0.00020136,3]
[350127186,1737645042150,-500.0,0.00020136,3]
[350127188,1737645042159,-500.0,0.00020136,3]
[350127190,1737645042169,-264.01,0.00020136,3]
[350127192,1737645042179,-547.82,0.00020136,3]
[350127193,1737645042188,-601.31,0.00020136,3]
[350127195,1737645042197,-402.0,0.00020136,3]
[350127197,1737645042209,-500.0,0.00020136,2]
[350127199,1737645042218,-500.0,0.00020136,3]
[350127202,1737645042228,-272.88,0.00020136,3]
[350127203,1737645042238,-634.28,0.00020136,3]
[350127205,1737645042247,-500.0,0.00020136,3]
[350127207,1737645042257,-1176.6,0.00020136,3]
[350127209,1737645042266,-2081.0,0.00020136,3]
[350127211,1737645042276,-223.52440485,0.00020136,3]
[350127214,1737645042286,-818.19,0.00020136,3]
[350127216,1737645042295,-933.44,0.00020136,3]
[350127218,1737645042308,-500.0,0.00020136,3]
[350127220,1737645042318,-917.49,0.00020136,3]
[350127222,1737645042327,-500.0,0.00020136,3]
[350127224,1737645042337,-627.6,0.00020136,3]
[350127226,1737645042349,-500.0,0.00020136,3]
[350127228,1737645042359,-5760.95,0.00020136,3]
[350127230,1737645042369,-500.0,0.00020136,3]
[350127232,1737645042378,-471.50867813,0.00020136,3]
[350127234,1737645042388,-2591.49,0.00020136,3]
[350127236,1737645042397,-500.0,0.00020136,3]
[350127238,1737645042407,-1114.57,0.00020136,3]
[350127240,1737645042416,-304.24465086,0.0002014,4]
[350127242,1737645042427,-151.0,0.00020155,4]
[350127244,1737645042436,-1510.68950647,0.000202,2]
[350127246,1737645042446,-290.13277343,0.00020245,2]
[350127248,1737645042456,-151.0,0.00020261,4]
[350127250,1737645042465,-622.85,0.00020273,3]
[350127252,1737645042475,-287.2006999,0.00020273,3]
[350127254,1737645042484,-500.0,0.00020273,2]
[350127256,1737645042495,-205.39,0.00020273,3]
[350127258,1737645042505,-634.28,0.00020273,3]
[350127260,1737645042515,-500.0,0.00020273,3]
[350127262,1737645042524,-1176.6,0.00020273,3]
[350127264,1737645042534,-2081.0,0.00020273,3]
[350127266,1737645042544,-818.19,0.00020273,3]
[350127268,1737645042558,-933.44,0.00020273,3]
[350127270,1737645042568,-500.0,0.00020273,3]
[350127280,1737645042658,-917.49,0.00020273,3]
[350127282,1737645042669,-500.0,0.00020273,3]
[350127283,1737645042678,-500.0,0.00020273,3]
[350127284,1737645042687,-5760.95,0.00020273,3]
[350127285,1737645042697,-500.0,0.00020273,3]
[350127286,1737645042707,-2591.49,0.00020273,3]
[350127287,1737645042716,-500.0,0.00020273,3]
[350127288,1737645042727,-1114.57,0.00020273,3]
[350127289,1737645042737,-500.0,0.00020286,2]
[350127290,1737645042747,-500.0,0.00020286,2]
[350127291,1737645042759,-1510.68950647,0.000203,2]
[350127292,1737645042768,-151.0,0.00020367,4]
[350127293,1737645042779,-1510.68950647,0.000204,2]
[350127294,1737645042788,-500.0,0.0002041,2]
[350127295,1737645042799,-634.28,0.0002041,3]
[350127297,1737645042814,-500.0,0.0002041,3]
[350127299,1737645042824,-1176.6,0.0002041,3]
[350127301,1737645042834,-2081.0,0.0002041,3]
[350127304,1737645042844,-818.19,0.0002041,3]
[350127306,1737645042855,-933.44,0.0002041,3]
[350127308,1737645042865,-500.0,0.0002041,3]
[350127309,1737645042875,-917.49,0.0002041,3]
[350127311,1737645042885,-500.0,0.0002041,3]
[350127313,1737645042895,-500.0,0.0002041,3]
[350127315,1737645042904,-5760.95,0.0002041,3]
[350127317,1737645042914,-500.0,0.0002041,3]
[350127319,1737645042924,-2591.49,0.0002041,3]
[350127322,1737645042934,-500.0,0.0002041,3]
[350127324,1737645042944,-1114.57,0.0002041,3]
[350127326,1737645042954,-290.13277343,0.00020417,2]
[350127328,1737645042964,-400.0,0.00020447,2]
[350127330,1737645042974,-3000.0,0.00020447,2]
[350127332,1737645042983,-151.0,0.00020473,4]
[350127334,1737645042993,-1510.68950647,0.000205,2]
[350127336,1737645043002,-151.0,0.00020508,2]
[350127337,1737645043011,-9984.45597472,0.00020508,2]
[350127340,1737645043022,-5000.0,0.00020508,2]
[350127342,1737645043032,-5000.0,0.00020508,2]
[350127344,1737645043041,-5000.0,0.00020508,2]
[350127345,1737645043052,-5030.10094814,0.00020508,2]
[350127347,1737645043067,-438.26586333,0.00020521,2]
[350127349,1737645043078,-151.0,0.00020521,2]
[350127351,1737645043089,-151.0,0.00020521,2]
[350127353,1737645043099,-151.0,0.00020547,2]
[350127356,1737645043112,-500.0,0.00020547,2]
[350127358,1737645043123,-634.28,0.00020547,3]
[350127360,1737645043133,-590.46121828,0.00020547,3]
[350127362,1737645043143,-1176.6,0.00020547,3]
[350127364,1737645043153,-2081.0,0.00020547,3]
[350127366,1737645043162,-818.19,0.00020547,3]
[350127367,1737645043172,-933.44,0.00020547,3]
[350127369,1737645043183,-500.0,0.00020547,3]
[350127371,1737645043193,-917.49,0.00020547,3]
[350127374,1737645043203,-500.0,0.00020547,3]
[350127377,1737645043212,-500.0,0.00020547,3]
[350127379,1737645043223,-5760.95,0.00020547,3]
[350127381,1737645043232,-500.0,0.00020547,3]
[350127384,1737645043243,-2591.49,0.00020547,3]
[350127387,1737645043252,-500.0,0.00020547,3]
[350127390,1737645043262,-1114.57,0.00020547,3]
[350127392,1737645043272,-500.0,0.0002056,2]
[350127394,1737645043282,-652.67782377,0.0002056,2]
[350127396,1737645043292,-299.64,0.0002056,2]
[350127398,1737645043302,-151.0,0.00020578,5]
[350127400,1737645043315,-290.13277343,0.0002059,2]
[350127401,1737645043325,-300.0,0.000206,9]
[350127403,1737645043335,-1510.68950647,0.000206,2]
[350127405,1737645043344,-151.0,0.00020684,2]
[350127408,1737645043355,-151.0,0.00020684,5]
[350127410,1737645043364,-500.0,0.00020684,2]
[350127412,1737645043375,-634.28,0.00020684,3]
[350127413,1737645043384,-1176.6,0.00020684,3]
[350127415,1737645043394,-2081.0,0.00020684,3]
[350127417,1737645043404,-818.19,0.00020684,3]
[350127419,1737645043414,-933.44,0.00020684,3]
[350127421,1737645043424,-500.0,0.00020684,3]
[350127423,1737645043434,-917.49,0.00020684,3]
[350127426,1737645043444,-500.0,0.00020684,3]
[350127427,1737645043454,-500.0,0.00020684,3]
[350127429,1737645043464,-5760.95,0.00020684,3]
[350127431,1737645043473,-500.0,0.00020684,3]
[350127433,1737645043483,-2591.49,0.00020684,3]
[350127435,1737645043494,-500.0,0.00020684,3]
[350127437,1737645043504,-1114.57,0.00020684,3]
[350127439,1737645043514,-1510.68950647,0.000207,2]
[350127442,1737645043526,-1500.0,0.00020722,2]
[350127444,1737645043536,-674.57867059,0.00020722,2]
[350127445,1737645043547,-1500.0,0.00020722,2]
[350127447,1737645043564,-1500.0,0.00020722,2]
[350127450,1737645043574,-290.13277343,0.00020762,2]
[350127451,1737645043584,-21936.63253788,0.0002079,2]
[350127453,1737645043593,-1510.68950647,0.000208,2]
[350127455,1737645043604,-420.0,0.00020816,2]
[350127458,1737645043615,-500.0,0.00020821,2]
[350127460,1737645043626,-634.28,0.00020821,3]
[350127462,1737645043636,-1176.6,0.00020821,3]
[350127464,1737645043646,-2081.0,0.00020821,3]
[350127465,1737645043656,-818.19,0.00020821,3]
[350127468,1737645043667,-933.44,0.00020821,3]
[350127470,1737645043677,-285.93012046,0.00020821,3]
[350127472,1737645043687,-917.49,0.00020821,3]
[350127474,1737645043697,-500.0,0.00020821,3]
[350127476,1737645043707,-214.5840279,0.00020821,3]
[350127478,1737645043718,-5760.95,0.00020821,3]
[350127480,1737645043728,-500.0,0.00020821,3]
[350127482,1737645043738,-2591.49,0.00020821,3]
[350127484,1737645043749,-500.0,0.00020821,3]
[350127486,1737645043759,-1114.57,0.00020821,3]
[350127488,1737645043770,-150.15,0.00020834,2]
[350127490,1737645043781,-500.0,0.00020834,2]
[350127492,1737645043791,-500.0,0.000209,2]
[350127494,1737645043808,-1510.68950647,0.000209,2]
[350127496,1737645043819,-6054.5836593,0.000209,2]
[350127498,1737645043829,-479.101,0.00020913,15]
[350127500,1737645043839,-290.13277343,0.00020934,2]
[350127503,1737645043849,-500.0,0.00020958,2]
[350127505,1737645043861,-634.28,0.00020958,3]
[350127507,1737645043873,-1176.6,0.00020958,3]
[350127509,1737645043886,-2081.0,0.00020958,3]
[350127511,1737645043897,-818.19,0.00020958,3]
[350127513,1737645043908,-933.44,0.00020958,3]
[350127515,1737645043919,-917.49,0.00020958,3]
[350127517,1737645043930,-500.0,0.00020958,3]
[350127519,1737645043941,-5760.95,0.00020958,3]
[350127521,1737645043951,-500.0,0.00020958,3]
[350127523,1737645043962,-2591.49,0.00020958,3]
[350127525,1737645043972,-500.0,0.00020958,3]
[350127528,1737645043981,-1114.57,0.00020958,3]
[350127533,1737645043991,-625.32717515,0.00020973,2]
[350127535,1737645044001,-500.0,0.00020973,2]
[350127540,1737645044011,-520.7818514,0.00020973,2]
[350127544,1737645044021,-500.0,0.00020973,2]
[350127549,1737645044031,-161.62777135,0.00020973,2]
[350127552,1737645044041,-421.60262117,0.00020973,2]
[350127557,1737645044055,-500.0,0.00020973,2]
[350127560,1737645044068,-151.12608443,0.00020973,2]
[350127564,1737645044079,-500.0,0.00020973,2]
[350127568,1737645044092,-260.96671519,0.00020973,2]
[350127573,1737645044103,-429.90851424,0.00020973,2]
[350127576,1737645044112,-500.0,0.00020973,2]
[350127580,1737645044124,-500.0,0.00020973,2]
[350127584,1737645044134,-1000.0,0.00021,21]
[350127588,1737645044144,-5563.87374864,0.00021,2]
[350127592,1737645044154,-237.9744019,0.00021,2]
[350127596,1737645044165,-18248.64700838,0.00021,2]
[350127600,1737645044177,-322257.91123134,0.00021,2]
[350127604,1737645044188,-50468.16797858,0.00021,2]
[350127607,1737645044200,-45004.87889735,0.00021,2]
[350127611,1737645044210,-7554.38,0.00021,2]
[350127614,1737645044221,-4998.21593648,0.00021,2]
[350127617,1737645044232,-2000.0,0.00021,2]
[350127619,1737645044243,-1510.68950647,0.00021,2]
[350127623,1737645044255,-1669.0,0.00021,2]
[350127624,1737645044270,-3000.0,0.00021,2]
[350127628,1737645044282,-2000.0,0.00021,2]
[350127629,1737645044292,-151.0,0.00021,2]
[350127632,1737645044309,-151.0,0.00021,2]
[350127634,1737645044319,-183.124491,0.00021,2]
[350127637,1737645044330,-151.0,0.00021,2]
[350127639,1737645044340,-151.0,0.00021,2]
[350127641,1737645044351,-151.0,0.00021,2]
[350127644,1737645044362,-151.0,0.00021,2]
[350127648,1737645044374,-3000.0,0.0002101,2]
[350127649,1737645044385,-3000.0,0.0002102,2]
[350127652,1737645044395,-554.18149346,0.00021022,2]
[350127654,1737645044406,-3000.0,0.0002103,2]
[350127657,1737645044416,-3000.0,0.0002104,2]
[350127659,1737645044428,-3000.0,0.0002105,2]
[350127663,1737645044438,-3000.0,0.0002106,2]
[350127666,1737645044449,-3000.0,0.0002107,2]
[350127667,1737645044460,-3000.0,0.0002108,2]
[350127670,1737645044470,-151.0,0.0002108,2]
[350127673,1737645044480,-151.0,0.0002108,2]
[350127676,1737645044490,-3000.0,0.0002109,2]
[350127677,1737645044500,-151.0,0.0002109,2]
[350127680,1737645044510,-500.0,0.00021095,2]
[350127694,1737645044594,-634.28,0.00021095,3]
[350127698,1737645044606,-1176.6,0.00021095,3]
[350127700,1737645044617,-2081.0,0.00021095,3]
[350127703,1737645044627,-818.19,0.00021095,3]
[350127706,1737645044637,-933.44,0.00021095,3]
[350127708,1737645044647,-917.49,0.00021095,3]
[350127710,1737645044658,-500.0,0.00021095,3]
[350127712,1737645044669,-5760.95,0.00021095,3]
[350127714,1737645044677,-500.0,0.00021095,3]
[350127717,1737645044687,-2591.49,0.00021095,3]
[350127720,1737645044698,-500.0,0.00021095,3]
[350127723,1737645044708,-1114.57,0.00021095,3]
[350127726,1737645044718,-3045.16136838,0.000211,2]
[350127729,1737645044728,-1510.68950647,0.000211,2]
[350127732,1737645044737,-3000.0,0.000211,2]
[350127735,1737645044747,-290.13277343,0.00021107,2]
[350127738,1737645044756,-238.08883602,0.00021108,2]
[350127741,1737645044767,-609.61711913,0.00021108,2]
[350127744,1737645044777,-3000.0,0.0002111,2]
[350127747,1737645044787,-3000.0,0.0002112,2]
[350127750,1737645044797,-474.0,0.00021129,2]
[350127753,1737645044811,-474.0,0.00021129,2]
[350127756,1737645044821,-474.0,0.00021129,2]
[350127759,1737645044831,-474.0,0.00021129,2]
[350127762,1737645044840,-474.0,0.00021129,2]
[350127765,1737645044850,-474.0,0.00021129,2]
[350127768,1737645044860,-474.0,0.00021129,2]
[350127771,1737645044870,-474.0,0.00021129,2]
[350127773,1737645044882,-474.0,0.00021129,2]
[350127777,1737645044892,-474.0,0.00021129,2]
[350127780,1737645044902,-474.0,0.00021129,2]
[350127783,1737645044913,-474.0,0.00021129,2]
[350127786,1737645044923,-474.0,0.00021129,2]
[350127790,1737645044932,-474.0,0.00021129,2]
[350127793,1737645044942,-3000.0,0.0002113,2]
[350127795,1737645044952,-474.0,0.00021132,2]
[350127797,1737645044962,-474.0,0.00021132,2]
[350127799,1737645044971,-474.0,0.00021132,2]
[350127801,1737645044981,-474.0,0.00021132,2]
[350127803,1737645044991,-474.0,0.00021132,2]
[350127805,1737645045001,-474.0,0.00021132,2]
[350127807,1737645045010,-474.0,0.00021132,2]
[350127809,1737645045020,-474.0,0.00021132,2]
[350127811,1737645045029,-474.0,0.00021132,2]
[350127813,1737645045039,-474.0,0.00021132,2]
[350127815,1737645045048,-474.0,0.00021132,2]
[350127817,1737645045063,-474.0,0.00021132,2]
[350127819,1737645045073,-474.0,0.00021132,2]
[350127821,1737645045085,-474.0,0.00021132,2]
[350127823,1737645045095,-474.0,0.00021136,2]
[350127825,1737645045105,-474.0,0.00021136,2]
[350127827,1737645045118,-474.0,0.00021136,2]
[350127829,1737645045129,-474.0,0.00021136,2]
[350127831,1737645045138,-474.0,0.00021136,2]
[350127833,1737645045148,-474.0,0.00021136,2]
[350127835,1737645045158,-474.0,0.00021136,2]
[350127837,1737645045169,-474.0,0.00021136,2]
[350127839,1737645045179,-474.0,0.00021136,2]
[350127841,1737645045189,-474.0,0.00021136,2]
[350127842,1737645045198,-474.0,0.00021136,2]
[350127844,1737645045208,-474.0,0.00021136,2]
[350127846,1737645045218,-474.0,0.00021136,2]
[350127847,1737645045227,-474.0,0.00021136,2]
[350127848,1737645045237,-3000.0,0.0002114,2]
[350127849,1737645045247,-3000.0,0.0002115,2]
[350127850,1737645045256,-3000.0,0.0002116,2]
[350127851,1737645045267,-3000.0,0.0002117,2]
[350127852,1737645045277,-3000.0,0.0002118,2]
[350127853,1737645045287,-3000.0,0.0002119,2]
[350127854,1737645045296,-6630.32431155,0.00021195,2]
[350127855,1737645045310,-5000.0,0.00021199,2]
[350127856,1737645045320,-1510.68950647,0.000212,2]
[350127857,1737645045329,-3000.0,0.000212,2]
[350127859,1737645045343,-6000.59304015,0.00021204,3]
[350127861,1737645045354,-7955.49398201,0.00021204,2]
[350127863,1737645045363,-5000.0,0.00021204,2]
[350127865,1737645045373,-5000.0,0.00021204,2]
[350127867,1737645045382,-5000.0,0.00021204,2]
[350127869,1737645045392,-5000.0,0.00021204,2]
[350127871,1737645045402,-3000.0,0.0002121,2]
[350127873,1737645045411,-5000.0,0.0002122,2]
[350127875,1737645045424,-3000.0,0.0002122,2]
[350127878,1737645045439,-151.0,0.00021228,2]
[350127881,1737645045454,-151.0,0.00021228,2]
[350127883,1737645045466,-151.0,0.00021228,2]
[350127885,1737645045480,-7799.23264255,0.00021228,2]
[350127888,1737645045493,-5000.0,0.00021228,2]
[350127890,1737645045507,-5000.0,0.00021228,2]
[350127893,1737645045521,-5000.0,0.00021228,2]
[350127895,1737645045536,-5000.0,0.00021228,2]
[350127898,1737645045549,-3000.0,0.0002123,2]
[350127900,1737645045567,-482.06910393,0.00021232,2]
[350127903,1737645045580,-634.28,0.00021232,3]
[350127905,1737645045595,-1176.6,0.00021232,3]
[350127907,1737645045607,-2081.0,0.00021232,3]
[350127910,1737645045622,-818.19,0.00021232,3]
[350127912,1737645045636,-933.44,0.00021232,3]
[350127915,1737645045648,-917.49,0.00021232,3]
[350127917,1737645045659,-500.0,0.00021232,3]
[350127919,1737645045673,-5760.95,0.00021232,3]
[350127922,1737645045686,-500.0,0.00021232,3]
[350127924,1737645045700,-2591.49,0.00021232,3]
[350127926,1737645045714,-500.0,0.00021232,3]
[350127929,1737645045729,-6054.58365923,0.00021235,2]
[350127932,1737645045743,-3000.0,0.0002124,2]
[350127934,1737645045757,-3000.0,0.0002125,2]
[350127936,1737645045772,-3000.0,0.0002126,2]
[350127938,1737645045784,-3000.0,0.0002127,2]
[350127940,1737645045796,-290.13277343,0.00021279,2]
[350127943,1737645045813,-3000.0,0.0002128,2]
[350127946,1737645045829,-3000.0,0.0002129,2]
[350127948,1737645045843,-16266.28,0.000213,2]
[350127950,1737645045853,-1510.68950647,0.000213,2]
[350127952,1737645045866,-3000.0,0.000213,2]
[350127955,1737645045879,-3000.0,0.0002131,2]
[350127957,1737645045892,-3000.0,0.0002132,2]
[350127959,1737645045904,-3000.0,0.0002133,2]
[350127961,1737645045915,-3000.0,0.0002134,2]